bitfinex-derivatives/quotes_BTCF0:USTF0_20241020
["timestamp","ask_amount","ask_price","bid_price","bid_amount"]
[1729402055631,0.47834176,68243.0,68241.0,0.08799074]
[1729402055935,0.55085276,68243.0,68242.0,0.10100191]
[1729402056142,0.46093276,68243.0,68242.0,0.10100191]
[1729402056939,0.10013276,68243.0,68242.0,0.10100191]
[1729402057137,0.073274,68240.0,68239.0,0.04399587]
[1729402060543,0.3608,68242.0,68237.0,0.05866117]
[1729402060736,0.434072,68242.0,68241.0,0.04399545]
[1729402061240,0.073273,68241.0,68240.0,0.04399545]
[1729402061542,0.02686176,68243.0,68240.0,0.05866117]
[1729402061842,0.02686176,68243.0,68234.0,0.43412646]
[1729402061843,0.073272,68242.0,68241.0,0.0322]
[1729402062638,0.073272,68242.0,68241.0,0.09083843]
[1729402063442,0.073272,68242.0,68241.0,0.0322]
[1729402063741,0.073272,68242.0,68241.0,0.09083843]
[1729402064437,0.073272,68242.0,68241.0,0.0322]
[1729402065033,0.073272,68242.0,68241.0,0.22099368]
[1729402065439,0.073272,68242.0,68241.0,0.13300294]
[1729402065838,0.073272,68242.0,68241.0,0.22099368]
[1729402067436,0.073272,68242.0,68241.0,0.13300294]
[1729402068238,0.073272,68242.0,68241.0,0.22099368]
[1729402068636,0.073272,68242.0,68241.0,0.13300294]
[1729402069743,0.073272,68242.0,68241.0,0.22099368]
[1729402070849,0.073272,68242.0,68241.0,0.13300294]
[1729402072041,0.073272,68242.0,68241.0,0.0322]
[1729402072244,0.073272,68242.0,68241.0,0.07615169]
[1729402072751,0.073272,68242.0,68241.0,0.0322]
[1729402072948,0.073272,68242.0,68241.0,0.07615044]
[1729402073647,0.073272,68242.0,68241.0,0.0322]
[1729402074050,0.073272,68242.0,68241.0,0.04395006]
[1729402076343,0.42704094,68245.0,68238.0,0.05860211]
[1729402076653,0.073272,68242.0,68241.0,0.04395027]
[1729402076849,0.073275,68239.0,68238.0,0.05860211]
[1729402077352,0.42704094,68245.0,68238.0,0.05860211]
[1729402077554,0.42704094,68245.0,68241.0,0.04395193]
[1729402077852,0.073272,68242.0,68241.0,0.04395193]
[1729402080154,0.073272,68242.0,68241.0,0.18897675]
[1729402081162,0.073272,68242.0,68241.0,0.10107359]
[1729402081856,0.073272,68242.0,68241.0,0.18898178]
[1729402082855,0.073272,68242.0,68241.0,0.10107359]
[1729402083263,0.073272,68242.0,68241.0,0.18898291]
[1729402086455,0.073272,68242.0,68241.0,0.10107359]
[1729402087261,0.073273,68241.0,68240.0,0.04396269]
[1729402087559,0.073275,68239.0,68238.0,0.05861692]
[1729402089063,0.073274,68241.0,68238.0,0.27700909]
[1729402089364,0.073274,68241.0,68239.0,0.0313]
[1729402089758,0.073274,68241.0,68240.0,0.22011089]
[1729402092670,0.09970142,68241.0,68240.0,0.22011089]
[1729402094460,0.09970142,68241.0,68240.0,0.27872781]
[1729402095077,0.09970142,68241.0,68240.0,0.32148759]
[1729402095571,0.073274,68241.0,68240.0,0.40941297]
[1729402097171,0.073274,68241.0,68240.0,0.32148759]
[1729402101574,0.073274,68241.0,68240.0,0.32145447]
[1729402102178,0.073274,68241.0,68240.0,0.32145519]
[1729402103979,0.073275,68239.0,68237.0,0.07331297]
[1729402104185,0.3608,68246.0,68235.0,0.07331297]
[1729402104186,0.40127973,68237.0,68235.0,0.07331297]
[1729402104383,0.3608,68238.0,68234.0,0.07331297]
[1729402104573,0.3608,68238.0,68234.0,0.07330157]
[1729402104574,0.073277,68237.0,68234.0,0.07330157]
[1729402104774,0.3608,68238.0,68234.0,0.07330157]
[1729402104775,0.073279,68235.0,68234.0,0.07330157]
[1729402105079,0.073279,68235.0,68234.0,0.10161692]
[1729402105585,0.073279,68235.0,68234.0,0.17487701]
[1729402106193,0.073279,68235.0,68234.0,0.10158382]
[1729402106378,0.073279,68235.0,68234.0,0.07329247]
[1729402106982,0.073279,68235.0,68229.0,0.0309]
[1729402106983,0.38719046,68238.0,68233.0,0.07329247]
[1729402107180,0.07328,68234.0,68233.0,0.07329247]
[1729402107378,0.38719046,68238.0,68233.0,0.07329247]
[1729402107577,0.073281,68233.0,68232.0,0.07329247]
[1729402107784,0.073281,68233.0,68232.0,0.10160498]
[1729402108877,0.073281,68233.0,68232.0,0.18957562]
[1729402110076,0.02639046,68238.0,68231.0,0.07326857]
[1729402110391,0.3608,68239.0,68231.0,0.07326857]
[1729402110392,0.3608,68239.0,68235.0,0.05861481]
[1729402110593,0.434075,68239.0,68238.0,0.04395904]
[1729402111983,0.073275,68239.0,68238.0,0.04395904]
[1729402112889,0.05886759,68240.0,68237.0,0.04395904]
[1729402113184,0.073275,68239.0,68238.0,0.04395904]
[1729402117184,0.073276,68238.0,68237.0,0.05861481]
[1729402121182,0.0332,68239.0,68237.0,0.05860638]
[1729402122494,0.073276,68238.0,68237.0,0.05860638]
[1729402125389,0.03589122,68238.0,68228.0,0.073287]
[1729402125595,0.07328,68235.0,68228.0,0.073287]
[1729402125794,0.073281,68234.0,68229.0,0.22114156]
[1729402126492,0.073282,68233.0,68229.0,0.22114156]
[1729402126993,0.0332,68239.0,68229.0,0.22114156]
[1729402127191,0.073283,68232.0,68229.0,0.22114156]
[1729402127695,0.41966759,68240.0,68229.0,0.22114156]
[1729402127897,0.073285,68230.0,68229.0,0.22114156]
[1729402132188,0.073285,68230.0,68229.0,0.44415291]
[1729402132784,0.3936,68240.0,68229.0,0.44415291]
[1729402133094,0.3936,68240.0,68238.0,0.0733031]
[1729402133389,0.42014302,68240.0,68238.0,0.0733031]
[1729402134485,0.073275,68239.0,68238.0,0.0733031]
[1729402134687,0.073275,68239.0,68238.0,0.17472781]
[1729402135595,0.073276,68238.0,68237.0,0.0733031]
[1729402135898,0.073276,68238.0,68237.0,0.17473911]
[1729402139193,0.42014302,68240.0,68230.0,0.04399477]
[1729402139398,0.07328,68235.0,68230.0,0.04399477]
[1729402139591,0.07328,68235.0,68230.0,0.2627757]
[1729402139790,0.07328,68234.0,68230.0,0.2627757]
[1729402139991,0.42014302,68240.0,68230.0,0.2627757]
[1729402139992,0.073282,68233.0,68230.0,0.2627757]
[1729402140187,0.073284,68231.0,68230.0,0.21878093]
[1729402144395,0.073285,68230.0,68229.0,0.04399477]
[1729402144591,0.3608,68234.0,68226.0,0.3608]
[1729402144592,0.073288,68227.0,68226.0,0.3608]
[1729402147300,0.073288,68227.0,68226.0,0.46235746]
[1729402148512,0.09967585,68227.0,68226.0,0.46235172]
[1729402149097,0.09967585,68227.0,68226.0,0.55028915]
[1729402149902,0.09967585,68227.0,68226.0,0.18948915]
[1729402150800,0.09967585,68227.0,68226.0,0.10155172]
[1729402151000,0.09967585,68227.0,68226.0,0.18948915]
[1729402151404,0.09967585,68227.0,68226.0,0.10155172]
[1729402153207,0.02638785,68227.0,68225.0,0.11893743]
[1729402153407,0.073288,68227.0,68226.0,0.10159592]
[1729402154315,0.073289,68226.0,68225.0,0.031]
[1729402157612,0.07329,68225.0,68224.0,0.00219868]
[1729402158908,0.07329,68225.0,68224.0,0.00319868]
[1729402159217,0.07329,68225.0,68224.0,0.00419868]
[1729402162516,0.07329,68225.0,68224.0,0.10577285]
[1729402163218,0.07329,68225.0,68224.0,0.10577597]
[1729402164515,0.09917937,68225.0,68224.0,0.10577597]
[1729402173820,0.09917937,68225.0,68224.0,0.1936767]
[1729402177425,0.09917937,68225.0,68224.0,0.00419868]
[1729402184536,0.09917937,68225.0,68224.0,0.19371914]
[1729402185032,0.09917937,68225.0,68224.0,0.10581841]
[1729402185235,0.09917937,68225.0,68224.0,0.19371914]
[1729402185529,0.09917937,68225.0,68224.0,0.10581841]
[1729402185729,0.09917937,68225.0,68224.0,0.19371914]
[1729402185929,0.09917937,68225.0,68224.0,0.10581841]
[1729402187826,0.09917937,68225.0,68224.0,0.19371914]
[1729402188233,0.07329,68225.0,68224.0,0.19371914]
[1729402188425,0.07329,68225.0,68224.0,0.10581841]
[1729402188626,0.07329,68225.0,68224.0,0.22681339]
[1729402190039,0.07329,68225.0,68224.0,0.22684387]
[1729402192027,0.07329,68225.0,68224.0,0.22667332]
[1729402195746,0.07329,68225.0,68224.0,0.22648949]
[1729402196638,0.07329,68225.0,68224.0,0.10561049]
[1729402197835,0.07329,68225.0,68224.0,0.22608472]
[1729402198046,0.07329,68225.0,68224.0,0.22603841]
[1729402198535,0.07329,68225.0,68224.0,0.10561049]
[1729402199640,0.07329,68225.0,68224.0,0.00419868]
[1729402203334,0.07329,68225.0,68224.0,0.00319868]
[1729402203941,0.07329,68225.0,68224.0,0.00219868]
[1729402207536,0.07329,68225.0,68224.0,0.10343824]
[1729402214444,0.07329,68225.0,68224.0,0.00219868]
[1729402224358,0.07329,68225.0,68224.0,0.1034179]
[1729402226250,0.07329,68225.0,68224.0,0.00219868]
[1729402236860,0.07329,68225.0,68224.0,0.10349894]
[1729402238069,0.07329,68225.0,68224.0,0.00219868]
[1729402238266,0.07329,68225.0,68224.0,0.10348212]
[1729402242867,0.07329,68225.0,68224.0,0.10349609]
[1729402244876,0.07329,68225.0,68224.0,0.00219868]
[1729402251878,0.07329,68225.0,68224.0,0.10345994]
[1729402252884,0.07329,68225.0,68224.0,0.10347217]
[1729402253188,0.07329,68225.0,68224.0,0.10127349]
[1729402261297,0.07329,68225.0,68220.0,0.08797597]
[1729402261298,0.073296,68220.0,68216.0,0.3608]
[1729402261594,0.073296,68220.0,68217.0,0.44202845]
[1729402261777,0.073296,68220.0,68218.0,0.22199182]
[1729402262081,0.073296,68220.0,68219.0,0.4414308]
[1729402262488,0.073296,68220.0,68219.0,0.22199182]
[1729402264482,0.09979612,68220.0,68219.0,0.22199182]
[1729402265296,0.09979612,68220.0,68219.0,0.10127541]
[1729402265686,0.09979612,68220.0,68219.0,0.22199974]
[1729402266988,0.09979512,68220.0,68219.0,0.04400086]
[1729402267192,0.073295,68220.0,68219.0,0.04400086]
[1729402267993,0.073299,68217.0,68216.0,0.41946781]
[1729402268287,0.073299,68217.0,68216.0,0.63839829]
[1729402269293,0.073299,68217.0,68216.0,0.64039829]
[1729402270604,0.073299,68217.0,68216.0,0.58173048]
[1729402270794,0.073299,68217.0,68216.0,0.64139829]
[1729402274796,0.073299,68217.0,68216.0,0.58273048]
[1729402274996,0.02615282,68220.0,68216.0,0.80476149]
[1729402275200,0.073298,68218.0,68217.0,0.22203101]
[1729402275704,0.073298,68218.0,68217.0,0.44300466]
[1729402277001,0.073298,68218.0,68217.0,0.44500466]
[1729402277904,0.073298,68218.0,68217.0,0.44600466]
[1729402279803,0.073298,68218.0,68217.0,0.44516133]
[1729402281999,0.073298,68218.0,68217.0,0.22397365]
[1729402293309,0.073298,68218.0,68217.0,0.32354966]
[1729402298307,0.073298,68218.0,68217.0,0.41156049]
[1729402300607,0.073298,68218.0,68217.0,0.32354966]
[1729402305611,0.073298,68218.0,68217.0,0.22397365]
[1729402312527,0.073298,68218.0,68217.0,0.44231362]
[1729402314521,0.073298,68218.0,68217.0,0.44231554]
[1729402314920,0.073298,68218.0,68217.0,0.44230978]
[1729402315128,0.073298,68218.0,68217.0,0.44230993]
[1729402319535,0.073298,68218.0,68217.0,0.22397365]
[1729402321633,0.073298,68218.0,68217.0,0.26797647]
[1729402321829,0.073298,68218.0,68217.0,0.22397365]
[1729402324239,0.073298,68218.0,68217.0,0.26797669]
[1729402324534,0.073298,68218.0,68217.0,0.22397365]
[1729402326842,0.073298,68218.0,68217.0,0.2679769]
[1729402327536,0.073298,68218.0,68217.0,0.44238547]
[1729402333140,0.073298,68218.0,68217.0,0.32361582]
[1729402334530,0.073298,68218.0,68217.0,0.22397365]
[1729402342650,0.073298,68218.0,68217.0,0.44234615]
[1729402349154,0.073298,68218.0,68217.0,0.44238742]
[1729402350256,0.073298,68218.0,68217.0,0.32361671]
[1729402352644,0.073298,68218.0,68217.0,0.32361779]
[1729402357256,0.073298,68218.0,68217.0,0.44236517]
[1729402357655,0.073298,68218.0,68217.0,0.22397365]
[1729402361168,0.073298,68218.0,68217.0,0.58477365]
[1729402364774,0.073298,68218.0,68217.0,0.80306529]
[1729402368472,0.073298,68218.0,68217.0,0.80310827]
[1729402373480,0.073298,68218.0,68217.0,0.8030942]
[1729402373882,0.073298,68218.0,68217.0,0.68437418]
[1729402375889,0.073298,68218.0,68217.0,0.80312239]
[1729402378084,0.073298,68218.0,68217.0,0.80308611]
[1729402379689,0.073298,68218.0,68217.0,0.58477365]
[1729402385896,0.073298,68218.0,68217.0,0.55542365]
[1729402386080,0.073298,68218.0,68217.0,0.59942884]
[1729402386287,0.073298,68218.0,68217.0,0.55542365]
[1729402386995,0.073298,68218.0,68217.0,0.55442365]
[1729402387289,0.073298,68218.0,68217.0,0.55242365]
[1729402389092,0.073298,68218.0,68217.0,0.19162365]
[1729402406706,0.073298,68218.0,68217.0,0.26492265]
[1729402409905,0.073286,68229.0,68217.0,0.26492265]
[1729402409906,0.16116347,68237.0,68217.0,1.59218365]
[1729402410110,0.073275,68240.0,68236.0,0.59218218]
[1729402410303,0.50046,68253.0,68236.0,0.59218218]
[1729402410304,0.073275,68239.0,68236.0,0.59218218]
[1729402410505,0.073275,68239.0,68237.0,0.21945356]
[1729402410701,0.073271,68244.0,68238.0,0.073276]
[1729402410901,0.073274,68240.0,68238.0,0.073276]
[1729402411109,0.073274,68240.0,68239.0,0.21945356]
[1729402413014,0.073274,68241.0,68237.0,0.22080961]
[1729402413313,0.38776071,68247.0,68236.0,0.3608]
[1729402413510,0.38776071,68247.0,68237.0,0.22055812]
[1729402413717,0.073268,68246.0,68237.0,0.22055812]
[1729402413909,0.073274,68240.0,68237.0,0.22055812]
[1729402414302,0.38776071,68247.0,68236.0,0.3608]
[1729402414503,0.38776071,68247.0,68234.0,0.033]
[1729402414504,0.073279,68235.0,68234.0,0.033]
[1729402414705,0.3608,68240.0,68229.0,0.38698701]
[1729402415018,0.073278,68236.0,68235.0,0.21942254]
[1729402415206,0.073281,68233.0,68232.0,0.21942254]
[1729402415516,0.073283,68232.0,68228.0,0.073287]
[1729402415905,0.073283,68232.0,68231.0,0.2195237]
[1729402416413,0.073283,68232.0,68228.0,0.09932283]
[1729402416617,0.073283,68232.0,68231.0,0.21950106]
[1729402416912,0.073283,68232.0,68230.0,0.21950106]
[1729402417300,0.073283,68232.0,68228.0,0.09932283]
[1729402417501,0.073283,68232.0,68230.0,0.2205967]
[1729402420121,0.073279,68236.0,68234.0,0.07328]
[1729402420413,0.073279,68236.0,68235.0,0.3608]
[1729402420603,0.073279,68236.0,68235.0,0.61270624]
[1729402420810,0.073279,68236.0,68235.0,0.68598524]
[1729402428215,0.073279,68236.0,68235.0,0.61270624]
[1729402432419,0.12141801,68236.0,68235.0,0.61270624]
[1729402432815,0.073279,68236.0,68235.0,0.61270624]
[1729402447924,0.12698798,68236.0,68235.0,0.61270624]
[1729402448128,0.17415457,68236.0,68235.0,0.61270624]
[1729402452615,0.12044559,68236.0,68235.0,0.61270624]
[1729402452830,0.17396198,68236.0,68235.0,0.61270624]
[1729402453128,0.12044559,68236.0,68235.0,0.61270624]
[1729402454418,0.12044559,68236.0,68235.0,0.58070624]
[1729402454621,0.17386734,68236.0,68235.0,0.58070624]
[1729402454930,0.073279,68236.0,68235.0,0.58070624]
[1729402458232,0.073279,68236.0,68235.0,0.21990624]
[1729402458720,0.073279,68236.0,68234.0,0.22088571]
[1729402459029,0.073279,68236.0,68234.0,0.05865175]
[1729402459235,0.073279,68236.0,68234.0,0.22088571]
[1729402461327,0.073279,68235.0,68234.0,0.22088571]
[1729402463128,0.17339786,68235.0,68234.0,0.22088571]
[1729402464030,0.17342035,68235.0,68234.0,0.22088571]
[1729402464526,0.17342035,68235.0,68232.0,0.21981887]
[1729402464733,0.04681277,68234.0,68231.0,0.3608]
[1729402464929,0.073279,68235.0,68232.0,0.21957899]
[1729402464930,0.04681277,68233.0,68232.0,0.21957899]
[1729402465726,0.12009377,68233.0,68232.0,0.21957899]
[1729402470031,0.073281,68233.0,68232.0,0.27822774]
[1729402471037,0.073281,68233.0,68232.0,0.21957899]
[1729402472233,0.09918288,68233.0,68232.0,0.21957899]
[1729402473240,0.09918288,68233.0,68232.0,0.27822595]
[1729402474835,0.09918288,68233.0,68232.0,0.21957899]
[1729402475339,0.09918288,68233.0,68231.0,0.2208475]
[1729402475541,0.09918288,68233.0,68230.0,0.073284]
[1729402475743,0.09918288,68233.0,68231.0,0.21926213]
[1729402476549,0.073281,68233.0,68231.0,0.21926213]
[1729402478844,0.073281,68233.0,68232.0,0.05864711]
[1729402479145,0.073281,68233.0,68232.0,0.27969716]
[1729402481933,0.073281,68233.0,68232.0,0.22105005]
[1729402482338,0.073281,68233.0,68231.0,0.22114812]
[1729402482538,0.073281,68233.0,68230.0,0.073284]
[1729402482947,0.073281,68233.0,68231.0,0.21849634]
[1729402497350,0.3924,68243.0,68231.0,0.21849634]
[1729402497554,0.3924,68243.0,68234.0,0.05865703]
[1729402497555,0.073277,68238.0,68234.0,0.05865703]
[1729402497959,0.073277,68238.0,68236.0,0.3608]
[1729402498762,0.073277,68238.0,68237.0,0.04399176]
[1729402500157,0.073277,68237.0,68236.0,0.3608]
[1729402500360,0.11919755,68237.0,68236.0,0.3608]
[1729402503657,0.11915683,68237.0,68236.0,0.3608]
[1729402506366,0.18462647,68237.0,68236.0,0.3608]
[1729402507164,0.073277,68237.0,68236.0,0.3608]
[1729402511060,0.02643624,68243.0,68234.0,0.0328]
[1729402511261,0.0315,68244.0,68234.0,0.0328]
[1729402511262,0.073279,68236.0,68234.0,0.0328]
[1729402511466,0.073279,68236.0,68235.0,0.22000128]
[1729402517276,0.13035236,68236.0,68235.0,0.22000128]
[1729402517476,0.15683435,68236.0,68235.0,0.22000128]
[1729402521279,0.09976099,68236.0,68235.0,0.22000128]
[1729402526183,0.073279,68236.0,68235.0,0.22000128]
[1729402538583,0.12960467,68236.0,68235.0,0.22000128]
[1729402543688,0.19339834,68236.0,68235.0,0.22000128]
[1729402544088,0.12960467,68236.0,68235.0,0.22000128]
[1729402544598,0.1933372,68236.0,68235.0,0.22000128]
[1729402545490,0.073279,68236.0,68235.0,0.22000128]
[1729402552404,0.12929364,68236.0,68235.0,0.22000128]
[1729402559118,0.12930939,68236.0,68235.0,0.22000128]
[1729402560422,0.073279,68236.0,68235.0,0.22000128]
[1729402560718,0.073279,68236.0,68235.0,0.26399613]
[1729402561109,0.073279,68236.0,68235.0,0.22000128]
[1729402561317,0.073279,68236.0,68235.0,0.26399613]
[1729402562314,0.073279,68236.0,68235.0,0.22000128]
[1729402573520,0.073279,68236.0,68235.0,0.26399613]
[1729402575220,0.0321,68239.0,68236.0,0.073278]
[1729402575522,0.05566593,68238.0,68237.0,0.22127548]
[1729402576624,0.1190789,68238.0,68237.0,0.22127548]
[1729402580021,0.1923549,68238.0,68237.0,0.22127548]
[1729402582033,0.19241508,68238.0,68237.0,0.22127548]
[1729402582531,0.073276,68238.0,68237.0,0.22127548]
[1729402590529,0.19251817,68238.0,68237.0,0.22127548]
[1729402591825,0.19256372,68238.0,68237.0,0.22127548]
[1729402593033,0.12905159,68238.0,68237.0,0.22127548]
[1729402593249,0.12904095,68238.0,68237.0,0.22127548]
[1729402596533,0.073276,68238.0,68237.0,0.22127548]
[1729402596732,0.12902701,68238.0,68237.0,0.22127548]
[1729402597628,0.073276,68238.0,68237.0,0.22127548]
[1729402606039,0.19244883,68238.0,68237.0,0.22127548]
[1729402606429,0.19247766,68238.0,68237.0,0.22127548]
[1729402609739,0.1925081,68238.0,68237.0,0.22127548]
[1729402611328,0.073276,68238.0,68237.0,0.22127548]
[1729402612039,0.19253278,68238.0,68237.0,0.22127548]
[1729402612635,0.073276,68238.0,68237.0,0.22127548]
[1729402619744,0.073276,68238.0,68237.0,0.26527033]
[1729402621856,0.073276,68238.0,68237.0,0.04399485]
[1729402622040,0.073277,68237.0,68236.0,0.04399485]
[1729402623650,0.0321,68239.0,68235.0,0.04399485]
[1729402623960,0.073278,68236.0,68235.0,0.04399485]
[1729402626753,0.0321,68239.0,68234.0,0.04399485]
[1729402626951,0.07328,68234.0,68233.0,0.04399485]
[1729402627348,0.073282,68233.0,68231.0,0.3608]
[1729402627851,0.05551514,68232.0,68231.0,0.3608]
[1729402629353,0.05552965,68232.0,68231.0,0.3608]
[1729402629857,0.12881265,68232.0,68231.0,0.3608]
[1729402633955,0.12881265,68232.0,68228.0,0.02603583]
[1729402634266,0.05552965,68231.0,68229.0,0.21956374]
[1729402634558,0.05552965,68231.0,68227.0,0.074568]
[1729402634559,0.05552965,68231.0,68228.0,0.21956374]
[1729402634754,0.073284,68231.0,68230.0,0.0586598]
[1729402636366,0.073284,68231.0,68229.0,0.0586598]
[1729402637066,0.02633955,68233.0,68229.0,0.0586598]
[1729402637067,0.073285,68230.0,68229.0,0.0586598]
[1729402639266,0.073283,68232.0,68229.0,0.05862183]
[1729402639465,0.073285,68230.0,68229.0,0.05862183]
[1729402642763,0.073285,68230.0,68228.0,0.073287]
[1729402643975,0.073286,68229.0,68228.0,0.073287]
[1729402645567,0.05900861,68235.0,68224.0,0.07329]
[1729402645568,0.07329,68225.0,68224.0,0.07329]
[1729402646685,0.073292,68223.0,68222.0,0.02582086]
[1729402646887,0.073292,68223.0,68221.0,0.07549252]
[1729402647572,0.3608,68232.0,68221.0,0.00219852]
[1729402647573,0.09108,68231.0,68221.0,0.00219852]
[1729402647784,0.073293,68222.0,68221.0,0.00219852]
[1729402654794,0.073293,68222.0,68221.0,0.0461192]
[1729402654994,0.073293,68222.0,68221.0,0.00219852]
[1729402655684,0.073293,68222.0,68220.0,0.04392068]
[1729402655886,0.073294,68221.0,68220.0,0.04392068]
[1729402656196,0.073294,68221.0,68219.0,0.073297]
[1729402656492,0.3608,68228.0,68219.0,0.073297]
[1729402656493,0.073295,68220.0,68219.0,0.073297]
[1729402657491,0.073295,68220.0,68219.0,0.11721203]
[1729402657694,0.073295,68220.0,68219.0,0.117212]
[1729402657904,0.073295,68220.0,68219.0,0.073297]
[1729402660984,0.073297,68219.0,68218.0,0.043915]
[1729402664899,0.073297,68219.0,68216.0,0.05721263]
[1729402665300,0.073297,68219.0,68217.0,0.21859669]
[1729402665693,0.02657971,68222.0,68217.0,0.21859669]
[1729402665898,0.073298,68218.0,68217.0,0.21859669]
[1729402670397,0.41754354,68226.0,68216.0,0.13051163]
[1729402670704,0.073299,68217.0,68216.0,0.13051163]
[1729402674004,0.073299,68217.0,68216.0,0.18913346]
[1729402674503,0.073299,68217.0,68216.0,0.13051163]
[1729402674689,0.073299,68217.0,68216.0,0.11582834]
[1729402675303,0.073299,68217.0,68216.0,0.05721263]
[1729402675896,0.073299,68217.0,68216.0,0.11585205]
[1729402676101,0.073299,68217.0,68216.0,0.05721263]
[1729402676596,0.0992802,68217.0,68216.0,0.05721263]
[1729402684906,0.073299,68217.0,68216.0,0.05721263]
[1729402687907,0.073299,68217.0,68216.0,0.14368367]
[1729402688513,0.073299,68217.0,68216.0,0.11308367]
[1729402688819,0.073299,68217.0,68216.0,0.08647104]
[1729402695018,0.073299,68217.0,68215.0,0.38714611]
[1729402696922,0.073299,68217.0,68215.0,0.02634611]
[1729402697112,0.073299,68217.0,68216.0,0.3608]
[1729402697911,0.073299,68217.0,68214.0,0.073302]
[1729402698116,0.032,68218.0,68214.0,0.073302]
[1729402698421,0.073301,68215.0,68214.0,0.073302]
[1729402698725,0.073301,68215.0,68214.0,0.31966686]
[1729402698917,0.073301,68215.0,68214.0,0.68046686]
[1729402699713,0.073301,68215.0,68214.0,0.31966686]
[1729402699919,0.073301,68215.0,68214.0,0.68046686]
[1729402700512,0.073301,68215.0,68214.0,0.31966686]
[1729402703417,0.073301,68215.0,68214.0,0.39299513]
[1729402703810,0.073301,68215.0,68214.0,0.31966686]
[1729402704210,0.073301,68215.0,68214.0,0.39299513]
[1729402704629,0.073301,68215.0,68214.0,0.31966686]
[1729402706117,0.073301,68215.0,68214.0,0.39299513]
[1729402706622,0.073301,68215.0,68214.0,0.31966686]
[1729402707122,0.073301,68215.0,68214.0,0.39299513]
[1729402708219,0.073301,68215.0,68214.0,0.31966686]
[1729402709424,0.073301,68215.0,68214.0,0.39299513]
[1729402710024,0.073301,68215.0,68214.0,0.47959986]
[1729402711025,0.073301,68215.0,68214.0,0.47960256]
[1729402713717,0.073301,68215.0,68214.0,0.39299513]
[1729402715925,0.073301,68215.0,68214.0,0.31966686]
[1729402725020,0.073301,68215.0,68214.0,0.39299513]
[1729402726917,0.073301,68215.0,68214.0,0.31966686]
[1729402732529,0.073301,68215.0,68214.0,0.47969682]
[1729402733237,0.073301,68215.0,68214.0,0.31966686]
[1729402740134,0.073301,68215.0,68214.0,0.47971153]
[1729402741636,0.073301,68215.0,68214.0,0.40638326]
[1729402743244,0.073301,68215.0,68214.0,0.40630968]
[1729402744344,0.073301,68215.0,68214.0,0.47965125]
[1729402745636,0.073301,68215.0,68214.0,0.4796482]
[1729402748845,0.032,68218.0,68214.0,0.4063462]
[1729402749046,0.073296,68220.0,68216.0,0.07334157]
[1729402749248,0.073296,68220.0,68219.0,0.3608]
[1729402752951,0.073296,68220.0,68219.0,0.65414896]
[1729402758048,0.073296,68220.0,68219.0,0.58085196]
[1729402762355,0.073293,68223.0,68222.0,0.073293]
[1729402762556,0.0305,68228.0,68225.0,0.07329]
[1729402762557,0.073288,68227.0,68225.0,0.07329]
[1729402762739,0.00219913,68233.0,68223.0,0.22130893]
[1729402762942,0.00219913,68233.0,68221.0,0.3608]
[1729402762943,0.073284,68231.0,68227.0,0.434088]
[1729402763243,0.073284,68231.0,68229.0,0.04397585]
[1729402763446,0.073284,68231.0,68229.0,0.11726085]
[1729402763651,0.073284,68231.0,68228.0,0.25200893]
[1729402763652,0.00219913,68233.0,68230.0,0.33851279]
[1729402763849,0.00219913,68233.0,68231.0,0.04397585]
[1729402764244,0.00219913,68233.0,68232.0,0.22125194]
[1729402764757,0.00219913,68233.0,68230.0,0.11726085]
[1729402764758,0.00219913,68233.0,68231.0,0.21955135]
[1729402765056,0.073283,68232.0,68230.0,0.11726085]
[1729402765452,0.073283,68232.0,68231.0,0.21955135]
[1729402768651,0.073285,68231.0,68230.0,0.21978644]
[1729402768955,0.0303,68235.0,68229.0,0.02630634]
[1729402768956,0.073279,68235.0,68229.0,0.02630634]
[1729402769151,0.073279,68235.0,68233.0,0.3608]
[1729402769353,0.3608,68240.0,68233.0,0.3608]
[1729402769562,0.07328,68234.0,68233.0,0.40471351]
[1729402769856,0.07328,68234.0,68233.0,0.947904]
[1729402770355,0.07328,68234.0,68233.0,0.90399049]
[1729402778358,0.07328,68234.0,68233.0,0.97727149]
[1729402778558,0.3608,68240.0,68233.0,0.90399049]
[1729402778765,0.3608,68240.0,68234.0,0.07328]
[1729402778953,0.073278,68237.0,68234.0,0.07328]
[1729402779156,0.073279,68236.0,68235.0,0.21915431]
[1729402779670,0.07328,68235.0,68234.0,0.2206646]
[1729402779854,0.07328,68235.0,68233.0,0.3608]
[1729402780259,0.07328,68235.0,68234.0,0.2206646]
[1729402782273,0.3608,68240.0,68234.0,0.2206646]
[1729402782459,0.073276,68238.0,68234.0,0.2939446]
[1729402783166,0.073278,68237.0,68234.0,0.2939446]
[1729402787365,0.05553454,68236.0,68234.0,0.2939446]
[1729402787562,0.073278,68237.0,68234.0,0.2939446]
[1729402787763,0.0555338,68236.0,68234.0,0.2939446]
[1729402787965,0.073278,68237.0,68234.0,0.2939446]
[1729402788263,0.05553377,68236.0,68234.0,0.2939446]
[1729402788573,0.073279,68236.0,68234.0,0.2939446]
[1729402789269,0.12876836,68235.0,68234.0,0.2206646]
[1729402791272,0.12873972,68235.0,68234.0,0.2206646]
[1729402792274,0.073279,68235.0,68234.0,0.2206646]
[1729402799179,0.073279,68235.0,68234.0,0.26457811]
[1729402800477,0.073279,68235.0,68234.0,0.2206646]
[1729402800781,0.073279,68235.0,68234.0,0.26457811]
[1729402804775,0.073279,68235.0,68234.0,0.2206646]
[1729402807981,0.19208279,68235.0,68234.0,0.2206646]
[1729402809395,0.19208022,68235.0,68234.0,0.2206646]
[1729402814086,0.19202597,68235.0,68234.0,0.2206646]
[1729402815490,0.073279,68235.0,68234.0,0.2206646]
[1729402820880,0.09904455,68235.0,68234.0,0.2206646]
[1729402830493,0.15447746,68235.0,68234.0,0.2206646]
[1729402831999,0.2175811,68235.0,68234.0,0.2206646]
[1729402833495,0.21761747,68235.0,68234.0,0.2206646]
[1729402833898,0.2176175,68235.0,68234.0,0.2206646]
[1729402834997,0.19185195,68235.0,68234.0,0.2206646]
[1729402837410,0.073279,68235.0,68234.0,0.2206646]
[1729402842510,0.073268,68246.0,68240.0,0.073274]
[1729402842705,0.07546227,68249.0,68241.0,0.0307]
[1729402842913,0.00219827,68249.0,68248.0,0.073265]
[1729402843305,0.00219827,68249.0,68248.0,0.29199682]
[1729402845420,0.12223514,68249.0,68248.0,0.29199682]
[1729402847914,0.12213725,68249.0,68248.0,0.29199682]